lending/lending_fUSD_20241005
["ID","MTS","AMOUNT","RATE_DAILY","PERIOD"]
[339898254,1728147081636,-500.0,0.00039178,30]
[339898255,1728147081645,-500.0,0.00039178,30]
[339898256,1728147081657,-787.9,0.00039178,30]
[339898257,1728147081666,-500.0,0.00039178,30]
[339898258,1728147081676,-530.83,0.00039178,30]
[339898259,1728147081685,-1485.49,0.00039178,30]
[339898260,1728147081695,-500.0,0.00039178,30]
[339898261,1728147081704,-500.0,0.00039178,30]
[339898262,1728147081717,-500.0,0.00039178,30]
[339898263,1728147081727,-500.0,0.00039178,30]
[339898264,1728147081736,-500.0,0.00039178,30]
[339898265,1728147081746,-500.0,0.00039178,30]
[339898266,1728147081756,-518.08,0.00039178,30]
[339898267,1728147081767,-763.04,0.00039178,30]
[339898268,1728147081777,-501.12608749,0.00039178,30]
[339898269,1728147081786,-500.0,0.00039178,30]
[339898270,1728147081796,-500.0,0.00039178,30]
[339898271,1728147081806,-500.0,0.00039178,30]
[339898272,1728147081816,-612.29,0.00039178,30]
[339898273,1728147081826,-563.43,0.00039178,30]
[339898274,1728147081835,-500.0,0.00039178,30]
[339898275,1728147081845,-500.0,0.00039178,30]
[339898276,1728147081854,-822.39,0.00039178,30]
[339898277,1728147081864,-500.0,0.00039178,30]
[339898278,1728147081873,-1306.65,0.00039178,30]
[339898279,1728147081883,-1233.21,0.00039178,30]
[339898280,1728147081892,-583.48,0.00039178,30]
[339898281,1728147081902,-500.0,0.00039178,30]
[339898282,1728147081911,-868.45,0.00039178,30]
[339898283,1728147081921,-732.59,0.00039178,30]
[339898284,1728147081930,-500.0,0.00039178,30]
[339898285,1728147081940,-500.0,0.00039178,30]
[339898286,1728147081950,-500.0,0.00039178,30]
[339898287,1728147081962,-500.0,0.00039178,30]
[339898288,1728147081971,-500.0,0.00039178,30]
[339898289,1728147081981,-500.0,0.00039178,30]
[339898290,1728147081991,-1321.45,0.00039178,30]
[339898291,1728147082001,-500.0,0.00039178,30]
[339898292,1728147082010,-500.0,0.00039178,30]
[339898293,1728147082020,-528.8,0.00039178,30]
[339898294,1728147082029,-658.55,0.00039178,30]
[339898295,1728147082039,-500.0,0.00039178,30]
[339898296,1728147082048,-500.0,0.00039178,30]
[339898297,1728147082057,-500.0,0.00039178,30]
[339898298,1728147082067,-500.0,0.00039178,30]
[339898299,1728147082077,-993.81,0.00039178,30]
[339898300,1728147082087,-500.0,0.00039178,30]
[339898301,1728147082097,-500.0,0.00039178,30]
[339898302,1728147082106,-500.0,0.00039178,30]
[339898303,1728147082116,-500.0,0.00039178,30]
[339898304,1728147082127,-500.0,0.00039178,30]
[339898305,1728147082137,-553.51308683,0.00039178,30]
[339898306,1728147082147,-500.0,0.00039178,30]
[339898307,1728147082158,-500.0,0.00039178,30]
[339898308,1728147082169,-500.0,0.00039178,30]
[339898309,1728147082179,-953.14,0.00039178,30]
[339898310,1728147082189,-500.0,0.00039178,30]
[339898311,1728147082200,-694.83,0.00039178,30]
[339898312,1728147082210,-1392.91,0.00039178,30]
[339898313,1728147082220,-500.0,0.00039178,30]
[339898314,1728147082229,-500.0,0.00039178,30]
[339898315,1728147082239,-473.43333651,0.00039178,30]
[339898316,1728147082248,-500.0,0.00039178,30]
[339898317,1728147082258,-500.0,0.00039178,30]
[339898318,1728147082268,-500.0,0.00039178,30]
[339898319,1728147082279,-500.0,0.00039178,30]
[339898320,1728147082289,-500.0,0.00039178,30]
[339898321,1728147082298,-500.0,0.00039178,30]
[339898322,1728147082308,-698.41,0.00039178,30]
[339898323,1728147082318,-771.14,0.00039178,30]
[339898324,1728147082328,-500.0,0.00039178,30]
[339898325,1728147082341,-500.0,0.00039178,30]
[339898326,1728147082350,-885.57,0.00039178,30]
[339898327,1728147082360,-500.0,0.00039178,30]
[339898328,1728147082369,-386.89745724,0.00039178,30]
[339898329,1728147082379,-500.0,0.00039178,30]
[339898330,1728147082389,-1011.8,0.00039178,30]
[339898331,1728147082400,-563.02,0.00039178,30]
[339898332,1728147082411,-702.92,0.00039178,30]
[339898333,1728147082423,-529.89400053,0.00039178,30]
[339898334,1728147082433,-1294.33,0.00039178,30]
[339898335,1728147082443,-690.04,0.00039178,30]
[339898336,1728147082454,-1565.99,0.00039178,30]
[339898337,1728147082466,-918.37,0.00039178,30]
[339898338,1728147082475,-666.23,0.00039178,30]
[339898339,1728147082485,-500.0,0.00039178,30]
[339898340,1728147082494,-500.0,0.00039178,30]
[339898341,1728147082504,-894.45,0.00039178,30]
[339898342,1728147082514,-500.0,0.00039178,30]
[339898343,1728147082523,-500.0,0.00039178,30]
[339898344,1728147082531,-762.45,0.00039178,30]
[339898345,1728147082540,-500.0,0.00039178,30]
[339898346,1728147082550,-1037.04,0.00039178,30]
[339898347,1728147082560,-588.86,0.00039178,30]
[339898348,1728147082569,-729.96,0.00039178,30]
[339898349,1728147082579,-500.0,0.00039178,30]
[339898350,1728147082589,-500.0,0.00039178,30]
[339898351,1728147082598,-500.0,0.00039178,30]
[339898352,1728147082810,-500.0,0.00039178,30]
[339898353,1728147082820,-500.0,0.00039178,30]
[339898354,1728147082829,-500.0,0.00039178,30]
[339898355,1728147082838,-500.0,0.00039178,30]
[339898356,1728147082848,-500.0,0.00039178,30]
[339898357,1728147082858,-922.09,0.00039178,30]
[339898358,1728147082867,-500.0,0.00039178,30]
[339898359,1728147082876,-500.0,0.00039178,30]
[339898360,1728147082886,-500.0,0.00039178,30]
[339898361,1728147082896,-500.0,0.00039178,30]
[339898362,1728147082906,-500.0,0.00039178,30]
[339898363,1728147082916,-500.0,0.00039178,30]
[339898364,1728147082925,-500.0,0.00039178,30]
[339898365,1728147082936,-500.0,0.00039178,30]
[339898366,1728147082946,-500.0,0.00039178,30]
[339898367,1728147082955,-500.0,0.00039178,30]
[339898368,1728147082967,-1207.02,0.00039178,30]
[339898369,1728147082976,-1060.1,0.00039178,30]
[339898370,1728147082986,-500.0,0.00039178,30]
[339898371,1728147082995,-500.0,0.00039178,30]
[339898372,1728147083005,-500.0,0.00039178,30]
[339898373,1728147083014,-500.0,0.00039178,30]
[339898374,1728147083024,-500.0,0.00039178,30]
[339898375,1728147083034,-525.19,0.00039178,30]
[339898376,1728147083043,-500.0,0.00039178,30]
[339898377,1728147083053,-501.25,0.00039178,30]
[339898378,1728147083062,-500.0,0.00039178,30]
[339898379,1728147083072,-668.81,0.00039178,30]
[339898380,1728147083081,-500.0,0.00039178,30]
[339898381,1728147083091,-648.61,0.00039178,30]
[339898382,1728147083100,-500.0,0.00039178,30]
[339898383,1728147083109,-500.0,0.00039178,30]
[339898384,1728147083118,-500.0,0.00039178,30]
[339898385,1728147083128,-500.0,0.00039178,30]
[339898386,1728147083138,-1480.12,0.00039178,30]
[339898387,1728147083147,-500.0,0.00039178,30]
[339898388,1728147083157,-500.0,0.00039178,30]
[339898389,1728147083167,-500.0,0.00039178,30]
[339898390,1728147083176,-500.0,0.00039178,30]
[339898391,1728147083186,-1830.42,0.00039178,30]
[339898392,1728147083195,-500.0,0.00039178,30]
[339898393,1728147083204,-500.0,0.00039178,30]
[339898394,1728147083214,-1094.29,0.00039178,30]
[339898395,1728147083223,-500.0,0.00039178,30]
[339898396,1728147083232,-692.2,0.00039178,30]
[339898397,1728147083242,-500.0,0.00039178,30]
[339898398,1728147083251,-1171.31,0.00039178,30]
[339898399,1728147083261,-500.0,0.00039178,30]
[339898400,1728147083270,-1156.11,0.00039178,30]
[339898401,1728147083280,-980.64,0.00039178,30]
[339898402,1728147083290,-993.33,0.00039178,30]
[339898403,1728147083299,-500.0,0.00039178,30]
[339898404,1728147083308,-500.0,0.00039178,30]
[339898405,1728147083317,-759.97,0.00039178,30]
[339898406,1728147083327,-500.0,0.00039178,30]
[339898407,1728147083338,-500.0,0.00039178,30]
[339898408,1728147083347,-500.0,0.00039178,30]
[339898409,1728147083357,-809.87,0.00039178,30]
[339898410,1728147083366,-500.0,0.00039178,30]
[339898411,1728147083376,-500.0,0.00039178,30]
[339898412,1728147083386,-500.0,0.00039178,30]
[339898413,1728147083396,-500.0,0.00039178,30]
[339898414,1728147083406,-500.0,0.00039178,30]
[339898415,1728147083416,-500.0,0.00039178,30]
[339898416,1728147083427,-1128.79,0.00039178,30]
[339898417,1728147083437,-620.59,0.00039178,30]
[339898418,1728147083447,-500.0,0.00039178,30]
[339898419,1728147083457,-1212.72,0.00039178,30]
[339898420,1728147083468,-1002.95,0.00039178,30]
[339898421,1728147083477,-737.61,0.00039178,30]
[339898422,1728147083487,-500.0,0.00039178,30]
[339898423,1728147083496,-524.73,0.00039178,30]
[339898424,1728147083505,-500.0,0.00039178,30]
[339898425,1728147083515,-500.0,0.00039178,30]
[339898426,1728147083525,-1377.95,0.00039178,30]
[339898427,1728147083535,-1543.57,0.00039178,30]
[339898428,1728147083545,-813.84,0.00039178,30]
[339898429,1728147083554,-531.1,0.00039178,30]
[339898430,1728147083564,-500.0,0.00039178,30]
[339898431,1728147083574,-500.0,0.00039178,30]
[339898432,1728147083584,-500.0,0.00039178,30]
[339898433,1728147083594,-500.0,0.00039178,30]
[339898434,1728147083603,-500.0,0.00039178,30]
[339898435,1728147083613,-961.07,0.00039178,30]
[339898436,1728147083622,-500.0,0.00039178,30]
[339898437,1728147083632,-784.98,0.00039178,30]
[339898438,1728147083641,-517.9849231,0.00039178,30]
[339898439,1728147083651,-711.97,0.00039178,30]
[339898440,1728147083660,-500.0,0.00039178,30]
[339898441,1728147083670,-917.69,0.00039178,30]
[339898442,1728147083680,-500.0,0.00039178,30]
[339898443,1728147083689,-500.0,0.00039178,30]
[339898444,1728147083699,-500.0,0.00039178,30]
[339898445,1728147083708,-500.0,0.00039178,30]
[339898446,1728147083719,-500.0,0.00039178,30]
[339898447,1728147083729,-500.0,0.00039178,30]
[339898448,1728147083738,-906.22,0.00039178,30]
[339898449,1728147083748,-782.36,0.00039178,30]
[339898450,1728147083758,-677.3,0.00039178,30]
[339898451,1728147083767,-500.0,0.00039178,30]
[339898452,1728147083777,-500.0,0.00039178,30]
[339898453,1728147083787,-151.0,0.00039178,14]
[339898454,1728147083797,-1205.88,0.00039178,30]
[339898455,1728147083806,-500.0,0.00039178,30]
[339898456,1728147083817,-910.94,0.00039178,30]
[339898457,1728147083827,-1344.47,0.00039178,30]
[339898458,1728147083837,-542.61,0.00039178,30]
[339898459,1728147083847,-814.32,0.00039178,30]
[339898460,1728147083856,-500.0,0.00039178,30]
[339898461,1728147083866,-500.0,0.00039178,30]
[339898462,1728147083876,-500.0,0.00039178,30]
[339898463,1728147083886,-948.43,0.00039178,30]
[339898464,1728147083896,-500.0,0.00039178,30]
[339898465,1728147083906,-500.0,0.00039178,30]
[339898466,1728147083915,-500.0,0.00039178,30]
[339898467,1728147083925,-521.05351177,0.00039178,30]
[339898468,1728147083934,-500.0,0.00039178,30]
[339898469,1728147083943,-500.0,0.00039178,30]
[339898470,1728147083953,-676.76,0.00039178,30]
[339898471,1728147083965,-250.0,0.00039178,14]
[339898472,1728147083975,-1066.49,0.00039178,30]
[339898473,1728147083984,-500.0,0.00039178,30]
[339898474,1728147083993,-151.0,0.00039178,14]
[339898475,1728147084003,-500.0,0.00039178,30]
[339898476,1728147084012,-1541.44,0.00039178,30]
[339898477,1728147084021,-500.0,0.00039178,30]
[339898478,1728147084032,-1381.37,0.00039178,30]
[339898479,1728147084041,-500.0,0.00039178,30]
[339898480,1728147084051,-500.0,0.00039178,30]
[339898481,1728147084061,-500.0,0.00039178,30]
[339898482,1728147084070,-500.0,0.00039178,30]
[339898483,1728147084079,-500.0,0.00039178,30]
[339898484,1728147084087,-250.0,0.00039178,14]
[339898485,1728147084097,-500.0,0.00039178,30]
[339898486,1728147084106,-500.0,0.00039178,30]
[339898487,1728147084115,-500.0,0.00039178,30]
[339898488,1728147084124,-500.0,0.00039178,30]
[339898489,1728147084133,-500.0,0.00039178,30]
[339898490,1728147084143,-500.0,0.00039178,30]
[339898491,1728147084152,-500.0,0.00039178,30]
[339898492,1728147084162,-1320.61,0.00039178,30]
[339898493,1728147084172,-659.62,0.00039178,30]
[339898494,1728147084182,-500.0,0.00039178,30]
[339898495,1728147084192,-500.0,0.00039178,30]
[339898496,1728147084201,-500.0,0.00039178,30]
[339898497,1728147084212,-500.0,0.00039178,30]
[339898498,1728147084222,-500.0,0.00039178,30]
[339898499,1728147084232,-500.0,0.00039178,30]
[339898500,1728147084242,-1392.32,0.00039178,30]
[339898501,1728147084251,-1117.39,0.00039178,30]
[339898502,1728147084261,-500.0,0.00039178,30]
[339898503,1728147084270,-500.0,0.00039178,30]
[339898504,1728147084280,-500.0,0.00039178,30]
[339898505,1728147084290,-500.0,0.00039178,30]
[339898506,1728147084299,-500.0,0.00039178,30]
[339898507,1728147084307,-500.0,0.00039178,30]
[339898508,1728147084317,-1450.24,0.00039178,30]
[339898509,1728147084327,-995.8,0.00039178,30]
[339898510,1728147084338,-2170.1,0.00039178,30]
[339898511,1728147084348,-500.0,0.00039178,30]
[339898512,1728147084358,-1452.19,0.00039178,30]
[339898513,1728147084369,-877.02,0.00039178,30]
[339898514,1728147084379,-182.03,0.00039178,30]
[339898515,1728147084390,-500.0,0.00039178,30]
[339898516,1728147084401,-500.0,0.00039178,30]
[339898517,1728147084411,-746.73,0.00039178,30]
[339898518,1728147084421,-1409.59,0.00039178,30]
[339898519,1728147084431,-679.22,0.00039178,30]
[339898520,1728147084440,-500.0,0.00039178,30]
[339898521,1728147084449,-1020.04,0.00039178,30]
[339898522,1728147084462,-666.18,0.00039178,30]
[339898523,1728147084471,-569.48,0.00039178,30]
[339898524,1728147084481,-500.0,0.00039178,30]
[339898525,1728147084490,-500.0,0.00039178,30]
[339898526,1728147084500,-500.0,0.00039178,30]
[339898527,1728147084510,-1089.28,0.00039178,30]
[339898528,1728147084519,-980.44,0.00039178,30]
[339898529,1728147084528,-500.0,0.00039178,30]
[339898530,1728147084538,-568.81,0.00039178,30]
[339898531,1728147084547,-1673.25,0.00039178,30]
[339898532,1728147084557,-1354.9,0.00039178,30]
[339898533,1728147084566,-500.0,0.00039178,30]
[339898534,1728147084575,-3092.09,0.00039178,30]
[339898535,1728147084585,-500.0,0.00039178,30]
[339898536,1728147084595,-1117.04,0.00039178,30]
[339898537,1728147084604,-343.54248678,0.00039178,30]
[339898538,1728147084613,-500.0,0.00039178,30]
[339898539,1728147084623,-500.0,0.00039178,30]
[339898540,1728147084632,-500.0,0.00039178,30]
[339898541,1728147084642,-1400.9,0.00039178,30]
[339898542,1728147084651,-500.0,0.00039178,30]
[339898543,1728147084661,-521.3,0.00039178,30]
[339898544,1728147084670,-957.32,0.00039178,30]
[339898545,1728147084680,-500.0,0.00039178,30]
[339898546,1728147084690,-500.0,0.00039178,30]
[339898547,1728147084700,-532.54,0.00039178,30]
[339898548,1728147084709,-500.0,0.00039178,30]
[339898549,1728147084729,-500.0,0.00039178,30]
[339898550,1728147084739,-500.0,0.00039178,30]
[339898551,1728147084748,-151.0,0.00039178,14]
[339898552,1728147084759,-368.59259865,0.00039178,30]
[339898553,1728147084769,-613.27,0.00039178,30]
[339898554,1728147084777,-500.0,0.00039178,30]
[339898555,1728147084788,-500.0,0.00039178,30]
[339898556,1728147084797,-1461.62,0.00039178,30]
[339898557,1728147084806,-815.17,0.00039178,30]
[339898558,1728147084816,-551.78,0.00039178,30]
[339898559,1728147084825,-500.0,0.00039178,30]
[339898560,1728147084834,-500.0,0.00039178,30]
[339898561,1728147084844,-306.75218063,0.00039178,30]
[339898562,1728147084854,-500.0,0.00039178,30]
[339898563,1728147084864,-833.62,0.00039178,30]
[339898564,1728147084874,-973.8,0.00039178,30]
[339898565,1728147084884,-500.0,0.00039178,30]
[339898566,1728147084894,-749.79,0.00039178,30]
[339898567,1728147084904,-500.0,0.00039178,30]
[339898568,1728147084914,-500.0,0.00039178,30]
[339898569,1728147084924,-500.0,0.00039178,30]
[339898570,1728147084934,-552.5,0.00039178,30]
[339898571,1728147084944,-500.0,0.00039178,30]
[339898572,1728147084954,-500.0,0.00039178,30]
[339898573,1728147084965,-500.0,0.00039178,30]
[339898574,1728147084975,-500.0,0.00039178,30]
[339898575,1728147084985,-500.0,0.00039178,30]
[339898576,1728147084995,-595.63,0.00039178,30]
[339898577,1728147085005,-500.0,0.00039178,30]
[339898578,1728147085015,-500.0,0.00039178,30]
[339898579,1728147085024,-481.80216172,0.00039178,30]
[339898580,1728147085034,-895.17,0.00039178,30]
[339898581,1728147085044,-538.69,0.00039178,30]
[339898582,1728147085054,-716.85,0.00039178,30]
[339898583,1728147085063,-500.0,0.00039178,30]
[339898584,1728147085072,-500.0,0.00039178,30]
[339898585,1728147085082,-500.0,0.00039178,30]
[339898586,1728147085091,-500.0,0.00039178,30]
[339898587,1728147085101,-500.0,0.00039178,30]
[339898588,1728147085110,-734.46,0.00039178,30]
[339898589,1728147085120,-500.0,0.00039178,30]
[339898590,1728147085205,-500.0,0.00039178,30]
[339898591,1728147085216,-744.23,0.00039178,30]
[339898592,1728147085225,-500.0,0.00039178,30]
[339898593,1728147085235,-500.0,0.00039178,30]
[339898594,1728147085244,-65.46209442,0.00039178,30]
[339898595,1728147085761,-977.69790558,0.00039178,30]
[339898596,1728147085770,-544.13,0.00039178,30]
[339898597,1728147085779,-500.0,0.00039178,30]
[339898598,1728147085789,-526.24,0.00039178,30]
[339898599,1728147085798,-649.58,0.00039178,30]
[339898600,1728147085807,-837.39,0.00039178,30]
[339898601,1728147085816,-500.0,0.00039178,30]
[339898602,1728147085825,-500.0,0.00039178,30]
[339898603,1728147085835,-500.0,0.00039178,30]
[339898604,1728147085844,-500.0,0.00039178,30]
[339898605,1728147085853,-1194.16,0.00039178,30]
[339898606,1728147085862,-500.0,0.00039178,30]
[339898607,1728147085872,-500.0,0.00039178,30]
[339898608,1728147085882,-500.0,0.00039178,30]
[339898609,1728147085892,-500.0,0.00039178,30]
[339898610,1728147085901,-1245.75,0.00039178,30]
[339898611,1728147085910,-612.42,0.00039178,30]
[339898612,1728147085919,-510.48,0.00039178,30]
[339898613,1728147085928,-500.0,0.00039178,30]
[339898614,1728147085936,-896.41,0.00039178,30]
[339898615,1728147085946,-500.0,0.00039178,30]
[339898616,1728147085956,-912.71,0.00039178,30]
[339898617,1728147085965,-570.6,0.00039178,30]
[339898618,1728147085975,-500.0,0.00039178,30]
[339898619,1728147085984,-500.0,0.00039178,30]
[339898620,1728147085994,-935.17,0.00039178,30]
[339898621,1728147086003,-586.05244409,0.00039178,30]
[339898622,1728147086013,-500.0,0.00039178,30]
[339898623,1728147086022,-1275.76,0.00039178,30]
[339898624,1728147086031,-500.0,0.00039178,30]
[339898625,1728147086041,-500.0,0.00039178,30]
[339898626,1728147086051,-500.0,0.00039178,30]
[339898627,1728147086060,-305.93596817,0.00039178,30]
[339898628,1728147086070,-500.18,0.00039178,30]
[339898629,1728147086080,-500.0,0.00039178,30]
[339898630,1728147086090,-500.0,0.00039178,30]
[339898631,1728147086099,-500.0,0.00039178,30]
[339898632,1728147086108,-712.54,0.00039178,30]
[339898633,1728147086118,-500.0,0.00039178,30]
[339898634,1728147086127,-713.19,0.00039178,30]
[339898635,1728147086136,-645.72,0.00039178,30]
[339898636,1728147086146,-1057.7,0.00039178,30]
[339898637,1728147086155,-749.26,0.00039178,30]
[339898638,1728147086164,-500.0,0.00039178,30]
[339898639,1728147086173,-500.0,0.00039178,30]
[339898640,1728147086182,-500.0,0.00039178,30]
[339898641,1728147086191,-500.0,0.00039178,30]
[339898642,1728147086201,-1037.04,0.00039178,30]
[339898643,1728147086210,-688.31,0.00039178,30]
[339898644,1728147086219,-500.0,0.00039178,30]
[339898645,1728147086228,-700.86,0.00039178,30]
[339898646,1728147086237,-500.0,0.00039178,30]
[339898647,1728147086246,-997.54,0.00039178,30]
[339898648,1728147086255,-534.2,0.00039178,30]
[339898649,1728147086265,-607.13,0.00039178,30]
[339898650,1728147086274,-500.0,0.00039178,30]
[339898651,1728147086284,-500.98,0.00039178,30]
[339898652,1728147086293,-500.0,0.00039178,30]
[339898653,1728147086302,-542.57,0.00039178,30]
[339898654,1728147086311,-500.0,0.00039178,30]
[339898655,1728147086320,-1204.65,0.00039178,30]
[339898656,1728147086330,-539.24,0.00039178,30]
[339898657,1728147086341,-500.0,0.00039178,30]
[339898658,1728147086350,-500.0,0.00039178,30]
[339898659,1728147086360,-1294.2,0.00039178,30]
[339898660,1728147086369,-6114.95,0.00039178,30]
[339898661,1728147086379,-500.0,0.00039178,30]
[339898662,1728147086388,-610.97,0.00039178,30]
[339898663,1728147086399,-1197.02,0.00039178,30]
[339898664,1728147086409,-500.0,0.00039178,30]
[339898665,1728147086418,-500.0,0.00039178,30]
[339898666,1728147086427,-500.0,0.00039178,30]
[339898667,1728147086436,-801.24,0.00039178,30]
[339898668,1728147086446,-533.72,0.00039178,30]
[339898669,1728147086456,-500.0,0.00039178,30]
[339898670,1728147086467,-500.0,0.00039178,30]
[339898671,1728147086476,-973.61,0.00039178,30]
[339898672,1728147086485,-743.21,0.00039178,30]
[339898673,1728147086494,-1102.84,0.00039178,30]
[339898674,1728147086503,-616.19,0.00039178,30]
[339898675,1728147086512,-500.0,0.00039178,30]
[339898676,1728147086522,-500.0,0.00039178,30]
[339898677,1728147086530,-500.0,0.00039178,30]
[339898678,1728147086539,-500.0,0.00039178,30]
[339898679,1728147086548,-1463.87,0.00039178,30]
[339898680,1728147086557,-500.0,0.00039178,30]
[339898681,1728147086566,-603.49,0.00039178,30]
[339898682,1728147086575,-500.0,0.00039178,30]
[339898683,1728147086585,-500.0,0.00039178,30]
[339898684,1728147086594,-151.0,0.00039178,14]
[339898685,1728147086603,-652.66,0.00039178,30]
[339898686,1728147086613,-500.0,0.00039178,30]
[339898687,1728147086622,-502.85908362,0.00039178,30]
[339898688,1728147086631,-500.0,0.00039178,30]
[339898689,1728147086642,-857.16,0.00039178,30]
[339898690,1728147086652,-443.431309,0.00039178,14]
[339898691,1728147086661,-500.0,0.00039178,30]
[339898692,1728147086671,-500.0,0.00039178,30]
[339898693,1728147086680,-500.0,0.00039178,30]
[339898694,1728147086689,-500.0,0.00039178,30]
[339898695,1728147086699,-1257.63,0.00039178,30]
[339898696,1728147086708,-500.0,0.00039178,30]
[339898697,1728147086720,-261.48,0.00039178,30]
[339898698,1728147086729,-500.0,0.00039178,30]
[339898699,1728147086739,-500.0,0.00039178,30]
[339898700,1728147086749,-500.0,0.00039178,30]
[339898701,1728147086758,-730.24,0.00039178,30]
[339898702,1728147086768,-500.0,0.00039178,30]
[339898703,1728147086777,-1523.37,0.00039178,30]
[339898704,1728147086786,-443.431309,0.00039178,14]
[339898705,1728147086795,-500.0,0.00039178,30]
[339898706,1728147086804,-847.59,0.00039178,30]
[339898707,1728147086813,-500.0,0.00039178,30]
[339898708,1728147086822,-500.0,0.00039178,30]
[339898709,1728147086831,-500.0,0.00039178,30]
[339898710,1728147086841,-500.0,0.00039178,30]
[339898711,1728147086850,-500.0,0.00039178,30]
[339898712,1728147086859,-500.0,0.00039178,30]
[339898713,1728147086869,-708.16,0.00039178,30]
[339898714,1728147086878,-500.0,0.00039178,30]
[339898715,1728147086887,-500.0,0.00039178,30]
[339898716,1728147086897,-500.0,0.00039178,30]
[339898717,1728147086906,-500.0,0.00039178,30]
[339898718,1728147086916,-500.0,0.00039178,30]
[339898719,1728147086925,-500.0,0.00039178,30]
[339898720,1728147086935,-1110.69,0.00039178,30]
[339898721,1728147086944,-734.55,0.00039178,30]
[339898722,1728147086953,-500.0,0.00039178,21]
[339898723,1728147086965,-500.0,0.00039178,30]
[339898724,1728147086974,-500.0,0.00039178,30]
[339898725,1728147086984,-500.0,0.00039178,30]
[339898726,1728147086993,-1207.12,0.00039178,30]
[339898727,1728147087002,-356.56746444,0.00039178,30]
[339898728,1728147087011,-500.0,0.00039178,30]
[339898729,1728147087020,-621.54,0.00039178,30]
[339898730,1728147087030,-500.0,0.00039178,30]
[339898731,1728147087039,-1418.21,0.00039178,30]
[339898732,1728147087049,-500.0,0.00039178,30]
[339898733,1728147087058,-500.0,0.00039178,30]
[339898734,1728147087067,-1713.6,0.00039178,30]
[339898735,1728147087076,-553.80503916,0.00039178,30]
[339898736,1728147087086,-500.0,0.00039178,30]
[339898737,1728147087095,-596.62,0.00039178,30]
[339898738,1728147087105,-500.0,0.00039178,120]
[339898739,1728147087115,-500.0,0.00039178,30]
[339898740,1728147087125,-1763.97,0.00039178,30]
[339898741,1728147087136,-500.0,0.00039178,30]
[339898742,1728147087147,-500.0,0.00039178,30]
[339898743,1728147087158,-500.0,0.00039178,30]
[339898744,1728147087169,-520.32,0.00039178,30]
[339898745,1728147087179,-500.0,0.00039178,30]
[339898746,1728147087188,-500.0,0.00039178,30]
[339898747,1728147087198,-1374.93,0.00039178,30]
[339898748,1728147087208,-500.0,0.00039178,30]
[339898749,1728147087217,-814.88,0.00039178,30]
[339898750,1728147087227,-828.2,0.00039178,30]
[339898751,1728147087237,-500.0,0.00039178,30]
[339898752,1728147087246,-500.0,0.00039178,30]
[339898753,1728147087256,-1238.46,0.00039178,30]